Cogmind - Beta 13 @@@ ROGUE MODE // 2024.04.04 @ 18:50:56 Player: SovietPaperclip Result: Destroyed by as-66734 with Assembled Blade Performance ------------- Evolutions (0) 0 Regions Visited (2) 400 Robots Destroyed (26) 130 Value Destroyed (627) 627 Prototype IDs (0) 0 Alien Tech Used (0) 0 Bonus (0) 0 TOTAL SCORE: 1157 Bonus ------- None Cogmind --------- Core Integrity 0/250 Matter 167/300 Energy 160/160 System Corruption 0% Temperature Cool (0) Movement Treading (160) Location -10/Mines Parts ------- > --- POWER (1) -------- Light Nuclear Core > --- PROPULSION (2) --- Light Treads Light Treads > --- UTILITY (2) ------ Large Storage Unit > --- WEAPON (2) ------- Assault Rifle > --- INVENTORY (15) --- Ion Engine Large Storage Unit High-capacity Matter Pod (162) Structural Scanner Sensor Array Experimental Sensor Array Signal Interpreter ECM Suite Hacking Suite Peak State ------------ > --- POWER ------------ Light Nuclear Core > --- PROPULSION ------- Light Treads Light Treads > --- UTILITY ---------- Large Storage Unit Light Armor Plating > --- WEAPON ----------- Assault Rifle Assault Rifle > --- INVENTORY -------- Ion Engine Light Treads Light Treads Large Storage Unit High-capacity Matter Pod Structural Scanner Sensor Array Experimental Sensor Array Signal Interpreter ECM Suite Hacking Suite Light Assault Rifle Grenade Launcher [Rating: 11] Favorites ----------- Power Ion Engine Engine Ion Engine Power Core Light Nuclear Core Propulsion Light Treads Treads Light Treads Utility Light Armor Plating Storage Large Storage Unit Processor Visual Processing Unit Protection Light Armor Plating Weapon Assault Rifle Ballistic Gun Assault Rifle Launcher Grenade Launcher Build | -11 -10 -10 ------- Run | Yrd Mat Min Slots Evolved . | . . . Power . | . . . Propulsion . | . . . Utility . | . . . Weapon . | . . . Parts Attached 21 | 7 7 7 Power 2 | 1 1 . Engine 1 | 1 . . Core 1 | . 1 . Reactor . | . . . Propulsion 5 | 2 1 2 Treads 5 | 2 1 2 Leg . | . . . Wheel . | . . . Hover . | . . . Flight . | . . . Utility 4 | 1 3 . Device . | . . . Storage 2 | 1 1 . Processor 1 | . 1 . Hackware . | . . . Protection 1 | . 1 . Artifact . | . . . Weapon 10 | 3 2 5 Energy Gun . | . . . Energy Cannon . | . . . Ballistic Gun 8 | 3 2 3 Ballistic Cannon . | . . . Launcher 2 | . . 2 Special Weapon . | . . . Impact Weapon . | . . . Slashing Weapon . | . . . Piercing Weapon . | . . . Special Melee Weapon . | . . . Unidentified Prototypes . | . . . Parts Lost 10 | . 4 6 Power 1 | . 1 . Propulsion 3 | . 1 2 Utility 1 | . . 1 Weapon 5 | . 2 3 Highest Loss Streak 4 | . 2 4 To Critical Strikes . | . . . Average Slot Usage (%) 93 | . 94 87 Engine 8 | . 10 . Core 5 | . 3 14 Treads 25 | . 25 24 Storage 14 | . 14 14 Protection 10 | . 11 8 Ballistic Gun 26 | . 28 20 Naked Turns . | . . . Heaviest Build 33 | 14 32 33 Greatest Support 40 | 40 40 40 Greatest Overweight (x) 1 | . 1 1 Average Overweight (x) . | . . . Largest Inventory Capacity 15 | 8 15 15 Average Capacity 12 | 7 12 15 Most Carried 14 | 4 14 14 Average Carried 9 | 1 8 11 Final Capacity 15 | 8 15 15 Final Carried 12 | 2 12 9 Class Distribution -------------------- 100% | Mutant Dominant Class ---------------- Mutant | -10/Materials Mutant | -10/Mines Resources | -11 -10 -10 ----------- Run | Yrd Mat Min Matter Collected 979 | 203 629 147 Remotely . | . . . Salvage Created 790 | . 777 13 Parts 63 | . 63 . Haulers Intercepted 2 | . 2 . Recyclers Shooed 1 | . . 1 Parts Field Recycled . | . . . Retrieved Matter . | . . . Parts Self-Destructed . | . . . Prevented . | . . . Kills | -11 -10 -10 ------- Run | Yrd Mat Min Combat Hostiles Destroyed 23 | . 15 8 Guns 17 | . 15 2 AOE 6 | . . 6 Classes Destroyed 8 | . 6 2 Builder 2 | . 2 . Hauler 2 | . 2 . Operator 3 | . 3 . Watcher 3 | . 3 . Swarmer 3 | . 3 . Grunt 12 | . 12 . Demolisher 1 | . . 1 Assembled 7 | . . 7 Best Kill Streak 7 | . 7 4 Combat Bots Only 4 | . 4 4 Max Kills in Single Turn 2 | . 1 2 Gunslinging . | . . . Exploded 2 | . . 2 Melee . | . . . Uniques/NPCs Destroyed . | . . . Combat | -11 -10 -10 -------- Run | Yrd Mat Min Hostile Shots Fired 114 | . 80 34 Missed 21 | . 15 6 Damage Taken 1435 | . 762 673 Core 259 | . 85 174 Absorbed by Shields . | . . . Core Remaining (%) 100 | 100 . . Volleys Fired 88 | . 70 18 Largest 2 | . 2 2 Hottest 50 | . 40 50 Shots Fired 171 | . 140 31 Gun 160 | . 140 20 Cannon . | . . . Launcher 11 | . . 11 Special . | . . . Kinetic 160 | . 140 20 Thermal . | . . . Explosive 11 | . . 11 Electromagnetic . | . . . Robot Hit Streak 12 | . 12 4 Robot Miss Streak 5 | . 5 3 Penetration Max . | . . . Secondary Targets . | . . . Shots Hit Robots 107 | . 94 13 Core Hits 54 | . 41 13 Critical Kills 1 | . 1 . Critical Parts Destroyed 2 | . 2 . Critical Strikes 3 | . 3 . Destroy 3 | . 3 . Melee Attacks . | . . . Impact . | . . . Slashing . | . . . Piercing . | . . . Sneak Attacks . | . . . Combat Hostiles . | . . . Follow-up Attacks . | . . . Damage Inflicted 1620 | . 1188 432 Guns 1299 | . 1188 111 Cannons . | . . . Explosions 321 | . . 321 Melee . | . . . Ramming . | . . . Kinetic 1299 | . 1188 111 Thermal . | . . . Explosive 321 | . . 321 Electromagnetic . | . . . Impact . | . . . Slashing . | . . . Piercing . | . . . Highest Corruption . | . . . Average Corruption . | . . . Corruption Purged . | . . . Corruption Blocked . | . . . Overload Shots . | . . . Overflow Damage 5 | . . 5 Projectiles . | . . . Explosions 5 | . . 5 Melee . | . . . Knockbacks . | . . . Impact . | . . . Kinetic . | . . . Secondary . | . . . Self-Inflicted Damage 25 | . . 25 Shots 1 | . . 1 Rammed . | . . . Targets Rammed . | . . . Kicked . | . . . Crushed . | . . . Highest Temperature 32 | . 16 32 Average Temperature 8 | . 5 15 Received Heat Transfer 415 | . 375 40 Siege Activations . | . . . Robots Corrupted . | . . . Combat Hostiles . | . . . Parts Fried . | . . . Impact Corruptions . | . . . Robots Melted . | . . . Combat Hostiles . | . . . Parts Melted . | . . . Heat Transferred . | . . . Parts Sabotaged . | . . . Parts Stolen . | . . . Parts Stripped . | . . . Power Chain Reactions . | . . . Alert | -11 -10 -10 ------- Run | Yrd Mat Min Peak Influence 166 | . 166 65 Initial 34 | . . 34 Average 53 | . 59 42 Maximum Alert Level . | . . . Low Security (%) 100 | 100 100 100 Level 1 . | . . . Level 2 . | . . . Level 3 . | . . . Level 4 . | . . . Level 5 . | . . . High Security . | . . . Max Security . | . . . Squads Dispatched 4 | . 4 . Investigation 1 | . 1 . Extermination . | . . . Reinforcement 3 | . 3 . Assault . | . . . Garrison . | . . . Intercept . | . . . Searches Triggered . | . . . Construction Impeded . | . . . Haulers Reinforced . | . . . Active Scanning Responses . | . . . Cargo Convoy Interrupts . | . . . Stealth | -11 -10 -10 --------- Run | Yrd Mat Min Distress Signals 1 | . 1 . Communications Jammed . | . . . Distress Signals . | . . . Times Spotted 38 | . 26 12 Peak Tracking Total 10 | . 5 10 Tactical Retreats 2 | . 2 . Traps | -11 -10 -10 ------- Run | Yrd Mat Min Traps Triggered 1 | . 1 . Indirectly . | . . . Trap Hack Attempts . | . . . Triggered . | . . . Disarmed . | . . . Reprogrammed . | . . . Reused . | . . . Traps Extracted . | . . . Installed . | . . . Triggered . | . . . Machines | -11 -10 -10 ---------- Run | Yrd Mat Min Machines Disabled . | . . . Max in Single Turn . | . . . Machines Repaired . | . . . Machines Dismantled . | . . . Machines Sabotaged . | . . . Overloaded Fab Kills . | . . . Hacking | -11 -10 -10 --------- Run | Yrd Mat Min Machines Accessed 4 | . 4 . Terminals 4 | . 4 . Fabricators . | . . . Repair Stations . | . . . Recycling Units . | . . . Scanalyzers . | . . . Garrison Access . | . . . Total Hacks 8 | . 8 . Successful 2 | . 2 . Failed 6 | . 6 . Catastrophic 1 | . 1 . Database Lockouts . | . . . Manual . | . . . Terminals 8 | . 8 . Fabricators . | . . . Repair Stations . | . . . Recycling Units . | . . . Scanalyzers . | . . . Garrison Access . | . . . Terminal Hacks 2 | . 2 . Unreport Threat 1 | . 1 . Hauler Manifests 1 | . 1 . Fabricator Hacks . | . . . Repair Station Hacks . | . . . Recycling Unit Hacks . | . . . Scanalyzer . | . . . Garrison Access Hacks . | . . . Unauthorized Hacks . | . . . Terminals . | . . . Fabricators . | . . . Repair Stations . | . . . Recycling Units . | . . . Scanalyzers . | . . . Garrison Access . | . . . Data Cores Recovered . | . . . Used . | . . . Hacking Detections 3 | . 3 . Full Trace Events 1 | . 1 . Feedback Events . | . . . Feedback Blocked . | . . . Robot Schematics Acquired . | . . . Robots Built . | . . . Authchips . | . . . Time . | . . . Total Robot Build Rating . | . . . Part Schematics Acquired . | . . . Parts Built . | . . . Authchips . | . . . Time . | . . . Total Part Build Rating . | . . . Parts Repaired . | . . . Time . | . . . Parts Recycled . | . . . Recycled Matter . | . . . Retrieved Matter . | . . . Retrieved Components . | . . . Parts Scanalyzed . | . . . Part Schematics Acquired . | . . . Parts Damaged . | . . . Bothacking | -11 -10 -10 ------------ Run | Yrd Mat Min Used RIF Installer . | . . . Robots Hacked . | . . . Non-combat . | . . . Combat . | . . . Robot Hacks Applied . | . . . Relay Couplers Released . | . . . Fabnet Peak Effective % . | . . . Robots Rewired . | . . . Allies Hacked . | . . . Hacks Repelled . | . . . Allies | -11 -10 -10 -------- Run | Yrd Mat Min Total Allies . | . . . Largest Group . | . . . Highest-Rated Group . | . . . Highest-Rated Ally . | . . . Total Orders . | . . . Ally Attacks . | . . . Total Damage . | . . . Kills . | . . . Allies Corrupted . | . . . Allies Melted . | . . . Intel | -11 -10 -10 ------- Run | Yrd Mat Min Robot Analysis Total . | . . . Derelict Logs Recovered 1 | . . 1 Drone Launches . | . . . Drone Recoveries . | . . . Exploration | -11 -10 -10 ------------- Run | Yrd Mat Min Turns Passed 1910 | 77 1472 361 Spaces Moved 877 | 44 656 177 Core 7 | 7 . . Treads 870 | 37 656 177 Legs . | . . . Wheels . | . . . Hover . | . . . Flight . | . . . Fastest Speed 50 | 50 160 160 Average Speed 169 | 142 172 167 Slowest Speed 240 | 160 240 240 Overloaded Moves . | . . . Propulsion Burnouts . | . . . Robots Hopped . | . . . Cave-ins Triggered . | . . . Exploration Rate (%) 45 | 5 87 44 Regions Visited 2 Branch Regions 1 Pre-discovered Areas 1 | . . 1 Known Exits Taken . | . . . Unknown Exits Taken 2 | 1 1 . Scrap Searched 1 | . . 1 Spaces Dug . | . . . Terrain Destroyed 43 | . . 43 Melee . | . . . Projectile . | . . . AOE 43 | . . 43 Terrain Rammed . | . . . Walls Destroyed . | . . . Machines Disabled . | . . . Actions | -11 -10 -10 --------- Run | Yrd Mat Min Total 1128 | 58 860 210 Wait 112 | . 107 5 Move 875 | 43 655 177 Hop . | . . . Pick Up 28 | 8 18 2 Fast Attach . | . . . Attach 16 | 6 6 4 Detach . | . . . Swap 5 | 1 1 3 Drop 4 | . 3 1 Fire 88 | . 70 18 Melee . | . . . Ram . | . . . Kick . | . . . Crush . | . . . Escape Stasis . | . . . Rewire . | . . . Trap . | . . . Miscellaneous . | . . . Route ------- -11/Scrapyard -10/Materials (discovered 2 exits: [*Mat] / [*Min]) -10/Mines (discovered 1 exit: [*Mat]) History --------- Turn | Location | Event 2 | -11/Scrapyard | Met Revision 17 8 | -11/Scrapyard | Discovered new exit (range 15) 78 | -11/Scrapyard | Entered Materials 307 | -10/Materials | Build established: Mutant 720 | -10/Materials | Discovered new exit (range 7) 752 | -10/Materials | Discovered new exit (range 14) 1550 | -10/Materials | Entered Mines 1566 | -10/Mines | Discovered new exit (range 7) 1571 | -10/Mines | Learned location of Storage (-9) 1586 | -10/Mines | Found a damaged Exp. Sensor Array with a note attached 1589 | -10/Mines | Found Prototype Device 1593 | -10/Mines | Met a Derelict bent on vengeance 1708 | -10/Mines | Assembled infested the area 1713 | -10/Mines | Assisted by a Guerilla fighting off Assembled 1771 | -10/Mines | Core integrity fell below 50% 1781 | -10/Mines | Core integrity fell below 20% 1813 | -10/Mines | Lost 4 parts (1n1u2w) 1911 | -10/Mines | Destroyed by as-66734 with Assembled Blade Last Messages --------------- 01861_ R-06 Scavenger collects Lgt. Assault Rifle. 01862_ The unstable cave ceiling collapses. 01862_ U-05 Engineer lays Concrete. 01864_ R-06 Scavenger collects Lgt. Ion Engine. 01865_ U-05 Engineer lays Concrete. 01866_ U-05 Engineer builds a Wall. 01866_ U-05 Engineer lays Concrete. 01868_ U-05 Engineer builds a Wall. 01871_ U-05 Engineer lays Concrete. 01871_ Acquired 74 matter. 01872_ U-05 Engineer builds a Wall. 01873_ U-05 Engineer lays Concrete. 01894_ as-84517 destroyed. 01894_ Grenade Launcher destroyed. 01894_ Destroyed Grenade Launcher. 01898_ R-06 Scavenger collects Lgt. Ion Engine. 01900_ Acquired 3 matter. 01902_ R-06 Scavenger collects Sml. Storage Unit. Map ----- +----------------------------------------------------+ | ?????????????? ??????????????????????????? | | ?????????????? ???????????????????????????? | | ?????????????? ???????????????????????????? | | ????????#####? #???????????????????????????? | | ???????## ## #???????????????????????????? | | ??###### # ##??????????????????????????? | | ?## ##?????????????????????????? | | ?# #?????????????????????????? | | ?# ??????????????????????????? | | ?# ???????????????????????????? | | ?# #????????????????????????????? | | ??# #????????????????????????????? | | ??# ####?????????????????????????? | | ??# ##????????????????????????? | | ??# #????????????????????????? | | ??# ### #???####????????????????? | | ??## ##?# #??## ##???????????????? | | ???## ##??# #??# #???????????????? | | ????# ##???# #??# #???????????????? | | ????# #????## #### #???????????????? | | ????# #?????### ## #????? #????????? | | ????# #???????## #### #????????? | | ????# #?######## #????###### | | ????# #?# < ##???## ## | | ????# #?# ####### ###### #????# | | ????# #?# #?????##a@##?????? #????# | | ????# #?# #??????## ####????? #?????# * | | ????# #?# #???????# ## ##??????########%= | | ????# #?# #???????# #???????# ! | | ????# ### ####????### #???????# | | ????# [#?????# #???????# ### | | ????# #?????# #???????# ### # | | ????######## #?????# #???????#=## # | | ???????????# #????## ##??????# ## | | ???????????# ###### #####??# % | | ???????????# ##?# # % | | ???????????######### """ ###*### | | ???????????????????## """ #?### | | ????????????????????# """ ######??# | | ????????????????????## #???????## | | ?????????????????????## #????????## | | ??????????????????????# ##?????????# ## | | ??????????????????????# =#####??????????# ## | | ????????????????????? %#??????????????# #? | | ????????????????????### #??????????????# #? | | ?????????????????????? % ??????????????# #? | | ????????????????????? #??????????????# #? | | ????????????????????# #??????????????# #? | | ???????????????????? ##??????????????# ## | | ??????????????????? #????????????????# | +----------------------------------------------------+ Best States ------------- Heat Dissipation 25 Energy Generation 14 Energy Capacity 250 Matter Stores 300 Matter Capacity 300 Sight Range 18 Terrain Scan Density 10 Armor Coverage 150 Evasion (%) 40 Recoil Reduction 2 Item Schematics ----------------- None Robot Schematics ------------------ None Fabricated ------------ Nothing Alien Tech Used ----------------- None Achievements -------------- None Challenges ------------ None Game ------ Seed CommCoreLattice Manual? 0 Play Time 00:14:10 Cumulative 34.5 hours Start 2024.04.04 @ 18:39:00 End 2024.04.04 @ 18:50:56 Sessions 1 Manual Loads 0 Difficulty Rogue Special Mode None Game No. 48 Rogue 48 Adventurer 0 Explorer 0 Win Type - Total 1 Types 1/0/0/0/0/0/0/0/0 Lore% 21 Gallery% 25 Achievement% 26 Wizard Run 0 Options --------- Layout 1 ASCII 0 Keyboard 0 Movement Mouse Keybinds 0 Fullscreen 2 Font 32/Smallcaps Map View 50x40 Zoom Use 0% Tactical HUD 1 Map Filters NONE Filters NONE Steam 1 RUN: 8ee159b4-425f-409f-ac9e-3f928d8785ea